[Event "Titled Tuesday Blitz July 11 Early 2023"]
[White "Goltseva, Ekaterina"]
[Black "Nagare Kaivalya Sandip"]
[WhiteFideId "24173770"]
[BlackFideId "25957929"]
[WhiteElo "2519"]
[BlackElo "2666"]
[Result "1-0"]
[Round "6"]
[TimeControl "180+2"]
[Date "2023.07.11"]
[WhiteClock "0:00:05"]
[BlackClock "0:00:08"]
[Board "93"]

1. d4 {[%clk 0:03:00]}  g6 {[%clk 0:02:26]} 2. c4 {[%clk 0:02:55]}  Bg7 {[%clk 0:02:27]} 3. e4 {[%clk 0:02:56]}  d6 {[%clk 0:02:25]} 4. Nc3 {[%clk 0:02:55]}  Nf6 {[%clk 0:02:26]} 5. Nge2 {[%clk 0:02:53]}  O-O {[%clk 0:02:26]} 6. Ng3 {[%clk 0:02:54]}  e5 {[%clk 0:02:26]} 7. d5 {[%clk 0:02:54]}  c5 {[%clk 0:02:25]} 8. Be2 {[%clk 0:02:52]}  h5 {[%clk 0:02:00]} 9. Bg5 {[%clk 0:02:44]}  Qa5 {[%clk 0:01:51]} 10. Qd2 {[%clk 0:02:39]}  Qb6 {[%clk 0:01:43]} 11. Bxf6 {[%clk 0:02:04]}  Bxf6 {[%clk 0:01:43]} 12. Bxh5 {[%clk 0:01:58]}  Qd8 {[%clk 0:01:30]} 13. Be2 {[%clk 0:01:52]}  Kg7 {[%clk 0:01:29]} 14. Nf1 {[%clk 0:01:46]}  a6 {[%clk 0:01:25]} 15. Ne3 {[%clk 0:01:43]}  b5 {[%clk 0:01:25]} 16. cxb5 {[%clk 0:01:42]}  axb5 {[%clk 0:01:26]} 17. Bxb5 {[%clk 0:01:43]}  Bg5 {[%clk 0:01:13]} 18. g3 {[%clk 0:01:39]}  Qf6 {[%clk 0:01:11]} 19. h4 {[%clk 0:01:37]}  Bh6 {[%clk 0:01:09]} 20. h5 {[%clk 0:01:11]}  Qf3 {[%clk 0:01:01]} 21. Rh2 {[%clk 0:01:07]}  Ba6 {[%clk 0:00:24]} 22. Be2 {[%clk 0:01:00]}  Bxe2 {[%clk 0:00:24]} 23. Qxe2 {[%clk 0:01:01]}  Qxe2+ {[%clk 0:00:22]} 24. Kxe2 {[%clk 0:01:02]}  Bxe3 {[%clk 0:00:19]} 25. Kxe3 {[%clk 0:00:58]}  g5 {[%clk 0:00:19]} 26. g4 {[%clk 0:00:49]}  Nd7 {[%clk 0:00:20]} 27. Kd3 {[%clk 0:00:48]}  Rfb8 {[%clk 0:00:20]} 28. f3 {[%clk 0:00:47]}  Rb4 {[%clk 0:00:20]} 29. Rc2 {[%clk 0:00:39]}  c4+ {[%clk 0:00:20]} 30. Ke3 {[%clk 0:00:36]}  Nc5 {[%clk 0:00:20]} 31. Ne2 {[%clk 0:00:32]}  Rab8 {[%clk 0:00:21]} 32. Rb1 {[%clk 0:00:22]}  Na4 {[%clk 0:00:21]} 33. Ng3 {[%clk 0:00:17]}  Nxb2 {[%clk 0:00:20]} 34. Nf5+ {[%clk 0:00:17]}  Kf6 {[%clk 0:00:19]} 35. Nxd6 {[%clk 0:00:16]}  c3 {[%clk 0:00:18]} 36. Ke2 {[%clk 0:00:09]}  Na4 {[%clk 0:00:18]} 37. Rxb4 {[%clk 0:00:07]}  Rxb4 {[%clk 0:00:17]} 38. Nf5 {[%clk 0:00:06]}  Rb2 {[%clk 0:00:16]} 39. Kd3 {[%clk 0:00:06]}  Rb1 {[%clk 0:00:16]} 40. h6 {[%clk 0:00:05]}  Rf1 {[%clk 0:00:14]} 41. Ke2 {[%clk 0:00:04]}  Rh1 {[%clk 0:00:15]} 42. d6 {[%clk 0:00:03]}  Ke6 {[%clk 0:00:14]} 43. Kd3 {[%clk 0:00:02]}  Kd7 {[%clk 0:00:15]} 44. Ke3 {[%clk 0:00:02]}  Rh3 {[%clk 0:00:13]} 45. Kd3 {[%clk 0:00:01]}  f6 {[%clk 0:00:13]} 46. Kc4 {[%clk 0:00:02]}  Rxf3 {[%clk 0:00:13]} 47. Kb4 {[%clk 0:00:02]}  Nb6 {[%clk 0:00:11]} 48. Rxc3 {[%clk 0:00:03]}  Rf4 {[%clk 0:00:12]} 49. Rc4 {[%clk 0:00:03]}  Nxc4 {[%clk 0:00:12]} 50. Kxc4 {[%clk 0:00:04]}  Rxe4+ {[%clk 0:00:12]} 51. Kd5 {[%clk 0:00:05]}  Re1 {[%clk 0:00:12]} 52. Ng7 {[%clk 0:00:04]}  Rh1 {[%clk 0:00:12]} 53. Nh5 {[%clk 0:00:05]}  Rd1+ {[%clk 0:00:11]} 54. Ke4 {[%clk 0:00:05]}  Rb1 {[%clk 0:00:10]} 55. h7 {[%clk 0:00:04]}  Rb8 {[%clk 0:00:10]} 56. Nxf6+ {[%clk 0:00:05]}  Ke6 {[%clk 0:00:10]} 57. Ng8 {[%clk 0:00:06]}  Rb4+ {[%clk 0:00:11]} 58. Kf3 {[%clk 0:00:05]}  e4+ {[%clk 0:00:10]} 59. Ke3 {[%clk 0:00:05]}  Rb3+ {[%clk 0:00:08]} 60. axb3 {[%clk 0:00:05]} 1-0


[Site "https://www.chess.com"]

[Event "Titled Tuesday Blitz July 11 Early 2023"]
[White "slidingknight2775"]
[Black "Fantinel, Thibault"]
[BlackFideId "663395"]
[WhiteElo "2515"]
[BlackElo "2654"]
[Result "0-1"]
[Round "6"]
[TimeControl "180+2"]
[Date "2023.07.11"]
[WhiteClock "0:00:05"]
[BlackClock "0:00:18"]
[Board "94"]

1. Nf3 {[%clk 0:02:59]}  Nf6 {[%clk 0:02:59]} 2. g3 {[%clk 0:02:57]}  b6 {[%clk 0:02:58]} 3. Bg2 {[%clk 0:02:53]}  Bb7 {[%clk 0:02:59]} 4. O-O {[%clk 0:02:53]}  g6 {[%clk 0:02:59]} 5. b3 {[%clk 0:02:52]}  Bg7 {[%clk 0:02:59]} 6. Bb2 {[%clk 0:02:53]}  O-O {[%clk 0:02:59]} 7. c4 {[%clk 0:02:54]}  c5 {[%clk 0:03:00]} 8. d4 {[%clk 0:02:51]}  cxd4 {[%clk 0:03:01]} 9. Qxd4 {[%clk 0:02:49]}  d6 {[%clk 0:03:01]} 10. Qd1 {[%clk 0:02:43]}  Nbd7 {[%clk 0:03:01]} 11. Nc3 {[%clk 0:02:42]}  Rc8 {[%clk 0:02:59]} 12. Rc1 {[%clk 0:02:41]}  a6 {[%clk 0:02:58]} 13. Qd2 {[%clk 0:02:31]}  Nc5 {[%clk 0:02:54]} 14. Rfd1 {[%clk 0:02:24]}  Qd7 {[%clk 0:02:50]} 15. Nd4 {[%clk 0:01:52]}  Bxg2 {[%clk 0:02:41]} 16. Kxg2 {[%clk 0:01:53]}  Qb7+ {[%clk 0:02:29]} 17. Nf3 {[%clk 0:01:44]}  b5 {[%clk 0:02:28]} 18. Nd5 {[%clk 0:01:27]}  Nxd5 {[%clk 0:02:20]} 19. cxd5 {[%clk 0:01:28]}  Bxb2 {[%clk 0:02:10]} 20. Qxb2 {[%clk 0:01:26]}  Rc7 {[%clk 0:02:11]} 21. h4 {[%clk 0:01:14]}  h5 {[%clk 0:02:10]} 22. Qd4 {[%clk 0:01:08]}  Rfc8 {[%clk 0:02:09]} 23. g4 {[%clk 0:01:00]}  hxg4 {[%clk 0:02:04]} 24. Qxg4 {[%clk 0:01:01]}  Nd7 {[%clk 0:02:03]} 25. Rxc7 {[%clk 0:00:59]}  Rxc7 {[%clk 0:02:01]} 26. h5 {[%clk 0:00:44]}  Nf6 {[%clk 0:02:00]} 27. Qg5 {[%clk 0:00:44]}  Nxh5 {[%clk 0:01:20]} 28. Rh1 {[%clk 0:00:42]}  Kf8 {[%clk 0:01:20]} 29. e4 {[%clk 0:00:17]}  Qc8 {[%clk 0:01:06]} 30. Nd4 {[%clk 0:00:11]}  Ke8 {[%clk 0:00:42]} 31. Nc6 {[%clk 0:00:05]}  Rxc6 {[%clk 0:00:43]} 32. dxc6 {[%clk 0:00:06]}  Qxc6 {[%clk 0:00:43]} 33. Qe3 {[%clk 0:00:04]}  e5 {[%clk 0:00:34]} 34. Rd1 {[%clk 0:00:02]}  Nf4+ {[%clk 0:00:33]} 35. Kg1 {[%clk 0:00:01]}  Kf8 {[%clk 0:00:30]} 36. Kh2 {[%clk 0:00:02]}  Kg7 {[%clk 0:00:29]} 37. f3 {[%clk 0:00:02]}  Qc8 {[%clk 0:00:25]} 38. Kg1 {[%clk 0:00:01]}  Qh3 {[%clk 0:00:24]} 39. Qf2 {[%clk 0:00:02]}  Qe6 {[%clk 0:00:23]} 40. Qd2 {[%clk 0:00:02]}  Qh3 {[%clk 0:00:16]} 41. Qf2 {[%clk 0:00:01]}  Qh5 {[%clk 0:00:16]} 42. Re1 {[%clk 0:00:01]}  Nh3+ {[%clk 0:00:16]} 43. Kf1 {[%clk 0:00:01]}  Nxf2 {[%clk 0:00:17]} 44. Kxf2 {[%clk 0:00:02]}  Qh2+ {[%clk 0:00:16]} 45. Ke3 {[%clk 0:00:02]}  Qxa2 {[%clk 0:00:16]} 46. Re2 {[%clk 0:00:03]}  Qxb3+ {[%clk 0:00:17]} 47. Kd2 {[%clk 0:00:04]}  Qb2+ {[%clk 0:00:16]} 48. Ke3 {[%clk 0:00:04]}  Qxe2+ {[%clk 0:00:17]} 49. Kxe2 {[%clk 0:00:05]}  f5 {[%clk 0:00:18]} 50. f4 {[%clk 0:00:06]}  exf4 {[%clk 0:00:18]} 51. e5 {[%clk 0:00:05]}  dxe5 {[%clk 0:00:18]} 0-1


[Site "https://www.chess.com"]

[Event "Titled Tuesday Blitz July 11 Early 2023"]
[White "Liyanage, Ranindu Dilshan"]
[Black "Shvedova, Alexandra"]
[WhiteFideId "9915834"]
[BlackFideId "54154782"]
[WhiteElo "2647"]
[BlackElo "2512"]
[Result "0-1"]
[Round "6"]
[TimeControl "180+2"]
[Date "2023.07.11"]
[WhiteClock "0:00:04"]
[BlackClock "0:00:12"]
[Board "95"]

1. e4 {[%clk 0:03:00]}  e5 {[%clk 0:03:00]} 2. Nf3 {[%clk 0:02:54]}  Nc6 {[%clk 0:03:00]} 3. Bc4 {[%clk 0:02:53]}  Bc5 {[%clk 0:03:00]} 4. c3 {[%clk 0:02:53]}  Nf6 {[%clk 0:03:00]} 5. d4 {[%clk 0:02:54]}  exd4 {[%clk 0:03:01]} 6. cxd4 {[%clk 0:02:55]}  Bb4+ {[%clk 0:03:01]} 7. Nbd2 {[%clk 0:02:55]}  d5 {[%clk 0:02:56]} 8. exd5 {[%clk 0:02:56]}  Nxd5 {[%clk 0:02:57]} 9. a3 {[%clk 0:02:55]}  Be7 {[%clk 0:02:53]} 10. O-O {[%clk 0:02:53]}  O-O {[%clk 0:02:53]} 11. Ba2 {[%clk 0:02:17]}  Bg4 {[%clk 0:02:38]} 12. h3 {[%clk 0:02:14]}  Bh5 {[%clk 0:02:37]} 13. Qb3 {[%clk 0:02:12]}  Nf4 {[%clk 0:02:25]} 14. d5 {[%clk 0:01:53]}  Ne2+ {[%clk 0:02:11]} 15. Kh1 {[%clk 0:01:50]}  Ncd4 {[%clk 0:02:11]} 16. Nxd4 {[%clk 0:01:35]}  Nxd4 {[%clk 0:02:12]} 17. Qc4 {[%clk 0:01:33]}  c5 {[%clk 0:02:02]} 18. Re1 {[%clk 0:01:27]}  b5 {[%clk 0:01:57]} 19. Qc3 {[%clk 0:01:27]}  Bg6 {[%clk 0:01:41]} 20. Ne4 {[%clk 0:01:25]}  Rc8 {[%clk 0:01:35]} 21. Bf4 {[%clk 0:01:15]}  Bxe4 {[%clk 0:01:30]} 22. Rxe4 {[%clk 0:01:16]}  Bd6 {[%clk 0:01:30]} 23. Bxd6 {[%clk 0:00:46]}  Qxd6 {[%clk 0:01:31]} 24. Rae1 {[%clk 0:00:46]}  h6 {[%clk 0:01:23]} 25. b4 {[%clk 0:00:45]}  Nf5 {[%clk 0:01:18]} 26. bxc5 {[%clk 0:00:44]}  Rxc5 {[%clk 0:01:18]} 27. Qf3 {[%clk 0:00:45]}  g6 {[%clk 0:01:13]} 28. Re5 {[%clk 0:00:45]}  Ng7 {[%clk 0:01:05]} 29. Qe3 {[%clk 0:00:38]}  Kh7 {[%clk 0:01:00]} 30. Qd3 {[%clk 0:00:33]}  Rc1 {[%clk 0:00:56]} 31. Rxc1 {[%clk 0:00:29]}  Qxe5 {[%clk 0:00:56]} 32. d6 {[%clk 0:00:29]}  Rd8 {[%clk 0:00:56]} 33. Rd1 {[%clk 0:00:28]}  Nf5 {[%clk 0:00:54]} 34. d7 {[%clk 0:00:28]}  Qe7 {[%clk 0:00:51]} 35. Qd5 {[%clk 0:00:27]}  Kg7 {[%clk 0:00:49]} 36. Qxb5 {[%clk 0:00:27]}  Nd6 {[%clk 0:00:49]} 37. Qb2+ {[%clk 0:00:27]}  f6 {[%clk 0:00:48]} 38. Qc3 {[%clk 0:00:23]}  Rxd7 {[%clk 0:00:46]} 39. Re1 {[%clk 0:00:24]}  Qd8 {[%clk 0:00:37]} 40. Re6 {[%clk 0:00:23]}  Rf7 {[%clk 0:00:31]} 41. Qb3 {[%clk 0:00:22]}  Nf5 {[%clk 0:00:27]} 42. Re4 {[%clk 0:00:14]}  Rd7 {[%clk 0:00:28]} 43. Kh2 {[%clk 0:00:12]}  Nd4 {[%clk 0:00:27]} 44. Qc4 {[%clk 0:00:12]}  Nf5 {[%clk 0:00:25]} 45. g3 {[%clk 0:00:12]}  Nd6 {[%clk 0:00:25]} 46. Qe6 {[%clk 0:00:10]}  Nxe4 {[%clk 0:00:25]} 47. Qxe4 {[%clk 0:00:11]}  Qe7 {[%clk 0:00:25]} 48. Qc4 {[%clk 0:00:11]}  Qe8 {[%clk 0:00:24]} 49. Bb3 {[%clk 0:00:10]}  Re7 {[%clk 0:00:24]} 50. a4 {[%clk 0:00:10]}  a5 {[%clk 0:00:23]} 51. Qc5 {[%clk 0:00:10]}  Re5 {[%clk 0:00:23]} 52. Qc7+ {[%clk 0:00:10]}  Qe7 {[%clk 0:00:23]} 53. Qc4 {[%clk 0:00:11]}  Qe8 {[%clk 0:00:23]} 54. Qc7+ {[%clk 0:00:11]}  Qe7 {[%clk 0:00:24]} 55. Qc4 {[%clk 0:00:11]}  Qe8 {[%clk 0:00:23]} 56. Qc3 {[%clk 0:00:08]}  Re2 {[%clk 0:00:22]} 57. Qc5 {[%clk 0:00:08]}  Qe7 {[%clk 0:00:20]} 58. Qd4 {[%clk 0:00:05]}  Re4 {[%clk 0:00:19]} 59. Qd5 {[%clk 0:00:05]}  Qe8 {[%clk 0:00:17]} 60. Qxa5 {[%clk 0:00:06]}  Re2 {[%clk 0:00:17]} 61. Qa7+ {[%clk 0:00:06]}  Qe7 {[%clk 0:00:16]} 62. Qd4 {[%clk 0:00:05]}  Qe5 {[%clk 0:00:16]} 63. Qd7+ {[%clk 0:00:05]}  Qe7 {[%clk 0:00:16]} 64. Qd4 {[%clk 0:00:05]}  Qe5 {[%clk 0:00:16]} 65. Qb6 {[%clk 0:00:06]}  h5 {[%clk 0:00:13]} 66. a5 {[%clk 0:00:06]}  h4 {[%clk 0:00:13]} 67. Qb7+ {[%clk 0:00:05]}  Kh6 {[%clk 0:00:13]} 68. Qf3 {[%clk 0:00:05]}  hxg3+ {[%clk 0:00:12]} 69. Qxg3 {[%clk 0:00:05]}  Rxf2+ {[%clk 0:00:12]} 70. Kg1 {[%clk 0:00:04]}  Qxg3+ {[%clk 0:00:12]} 0-1


[Site "https://www.chess.com"]

[Event "Titled Tuesday Blitz July 11 Early 2023"]
[White "Bobkov, Vadim"]
[Black "Shishkov, Andrei"]
[WhiteFideId "34110876"]
[BlackFideId "4500563"]
[WhiteElo "2635"]
[BlackElo "2497"]
[Result "0-1"]
[Round "6"]
[TimeControl "180+2"]
[Date "2023.07.11"]
[WhiteClock "0:00:00"]
[BlackClock "0:00:32"]
[Board "97"]

1. d4 {[%clk 0:03:00]}  Nf6 {[%clk 0:02:52]} 2. c4 {[%clk 0:03:00]}  e6 {[%clk 0:02:52]} 3. Nc3 {[%clk 0:02:57]}  Bb4 {[%clk 0:02:52]} 4. f3 {[%clk 0:02:57]}  O-O {[%clk 0:02:47]} 5. a3 {[%clk 0:02:53]}  Bxc3+ {[%clk 0:02:47]} 6. bxc3 {[%clk 0:02:52]}  Ne8 {[%clk 0:02:48]} 7. e4 {[%clk 0:02:46]}  b6 {[%clk 0:02:48]} 8. Bd3 {[%clk 0:02:33]}  Nc6 {[%clk 0:02:47]} 9. Ne2 {[%clk 0:02:21]}  Ba6 {[%clk 0:02:42]} 10. O-O {[%clk 0:02:19]}  Na5 {[%clk 0:02:41]} 11. f4 {[%clk 0:02:04]}  Bxc4 {[%clk 0:02:39]} 12. Be3 {[%clk 0:01:59]}  f5 {[%clk 0:02:23]} 13. exf5 {[%clk 0:01:48]}  exf5 {[%clk 0:02:15]} 14. Ng3 {[%clk 0:01:35]}  Nd6 {[%clk 0:02:07]} 15. Re1 {[%clk 0:01:19]}  Bxd3 {[%clk 0:02:04]} 16. Qxd3 {[%clk 0:01:19]}  Nac4 {[%clk 0:02:04]} 17. Bc1 {[%clk 0:01:15]}  b5 {[%clk 0:01:47]} 18. Ra2 {[%clk 0:01:11]}  Qf6 {[%clk 0:01:43]} 19. Rae2 {[%clk 0:01:08]}  Rae8 {[%clk 0:01:42]} 20. Re5 {[%clk 0:01:01]}  g6 {[%clk 0:01:39]} 21. a4 {[%clk 0:00:55]}  a6 {[%clk 0:01:39]} 22. axb5 {[%clk 0:00:53]}  axb5 {[%clk 0:01:40]} 23. Kf2 {[%clk 0:00:49]}  Qf7 {[%clk 0:01:34]} 24. h4 {[%clk 0:00:39]}  h5 {[%clk 0:01:13]} 25. Nf1 {[%clk 0:00:24]}  Nxe5 {[%clk 0:01:05]} 26. dxe5 {[%clk 0:00:22]}  Ne4+ {[%clk 0:01:05]} 27. Kg1 {[%clk 0:00:22]}  d6 {[%clk 0:00:45]} 28. Ng3 {[%clk 0:00:12]}  dxe5 {[%clk 0:00:39]} 29. Nxe4 {[%clk 0:00:12]}  fxe4 {[%clk 0:00:37]} 30. Qxe4 {[%clk 0:00:12]}  exf4 {[%clk 0:00:36]} 31. Qxe8 {[%clk 0:00:01]}  Rxe8 {[%clk 0:00:33]} 32. Rxe8+ {[%clk 0:00:02]}  Qxe8 {[%clk 0:00:33]} 33. Kf2 {[%clk 0:00:00]}  Qe4 {[%clk 0:00:32]} 0-1


[Site "https://www.chess.com"]

[Event "Titled Tuesday Blitz July 11 Early 2023"]
[White "Niekras, Dawid"]
[Black "Novikov, Evgenij"]
[WhiteFideId "1160451"]
[BlackFideId "4125380"]
[WhiteElo "2607"]
[BlackElo "2487"]
[Result "1/2-1/2"]
[Round "6"]
[TimeControl "180+2"]
[Date "2023.07.11"]
[WhiteClock "0:00:11"]
[BlackClock "0:00:22"]
[Board "98"]

1. e4 {[%clk 0:03:00]}  c5 {[%clk 0:03:00]} 2. Be2 {[%clk 0:02:58]}  g6 {[%clk 0:02:58]} 3. f4 {[%clk 0:02:59]}  Bg7 {[%clk 0:02:57]} 4. Nf3 {[%clk 0:02:59]}  Nh6 {[%clk 0:02:54]} 5. O-O {[%clk 0:02:59]}  O-O {[%clk 0:02:54]} 6. d3 {[%clk 0:02:38]}  f5 {[%clk 0:02:53]} 7. e5 {[%clk 0:02:19]}  d6 {[%clk 0:02:53]} 8. c3 {[%clk 0:02:20]}  Kh8 {[%clk 0:02:51]} 9. Be3 {[%clk 0:02:15]}  Nc6 {[%clk 0:02:51]} 10. d4 {[%clk 0:02:15]}  cxd4 {[%clk 0:02:50]} 11. cxd4 {[%clk 0:02:15]}  Ng4 {[%clk 0:02:41]} 12. Qd2 {[%clk 0:02:07]}  dxe5 {[%clk 0:02:34]} 13. dxe5 {[%clk 0:02:03]}  Nxe3 {[%clk 0:02:33]} 14. Qxe3 {[%clk 0:02:04]}  Be6 {[%clk 0:02:30]} 15. Nc3 {[%clk 0:02:03]}  Qb6 {[%clk 0:02:18]} 16. Qxb6 {[%clk 0:02:00]}  axb6 {[%clk 0:02:19]} 17. a3 {[%clk 0:01:48]}  Rfd8 {[%clk 0:02:15]} 18. Rfd1 {[%clk 0:01:39]}  Bb3 {[%clk 0:02:14]} 19. Rxd8+ {[%clk 0:01:36]}  Rxd8 {[%clk 0:02:15]} 20. Kf2 {[%clk 0:01:34]}  e6 {[%clk 0:02:06]} 21. Bd1 {[%clk 0:01:34]}  Bc4 {[%clk 0:01:59]} 22. Be2 {[%clk 0:01:35]}  Bb3 {[%clk 0:01:58]} 23. Bd1 {[%clk 0:01:25]}  Bc4 {[%clk 0:01:58]} 24. b3 {[%clk 0:01:06]}  Rd3 {[%clk 0:01:42]} 25. Be2 {[%clk 0:00:59]}  Rxc3 {[%clk 0:01:36]} 26. Bxc4 {[%clk 0:01:00]}  Bf8 {[%clk 0:01:31]} 27. g3 {[%clk 0:00:16]}  Bc5+ {[%clk 0:01:29]} 28. Kg2 {[%clk 0:00:16]}  Rc2+ {[%clk 0:00:52]} 29. Kh3 {[%clk 0:00:16]}  h6 {[%clk 0:00:45]} 30. Bxe6 {[%clk 0:00:15]}  Rf2 {[%clk 0:00:42]} 31. Bd5 {[%clk 0:00:11]}  g5 {[%clk 0:00:37]} 32. fxg5 {[%clk 0:00:11]}  hxg5 {[%clk 0:00:37]} 33. Nxg5 {[%clk 0:00:11]}  Nxe5 {[%clk 0:00:37]} 34. Nf7+ {[%clk 0:00:11]}  Nxf7 {[%clk 0:00:36]} 35. Bxf7 {[%clk 0:00:12]}  b5 {[%clk 0:00:32]} 36. Bd5 {[%clk 0:00:08]}  b6 {[%clk 0:00:32]} 37. Bc6 {[%clk 0:00:06]}  b4 {[%clk 0:00:32]} 38. axb4 {[%clk 0:00:07]}  Bxb4 {[%clk 0:00:32]} 39. Ra7 {[%clk 0:00:06]}  f4 {[%clk 0:00:29]} 40. gxf4 {[%clk 0:00:06]}  Rxf4 {[%clk 0:00:30]} 41. Kg2 {[%clk 0:00:04]}  Rg4+ {[%clk 0:00:29]} 42. Kf3 {[%clk 0:00:05]}  Rh4 {[%clk 0:00:28]} 43. Kg3 {[%clk 0:00:04]}  Be1+ {[%clk 0:00:27]} 44. Kg2 {[%clk 0:00:04]}  Rh6 {[%clk 0:00:28]} 45. Bf3 {[%clk 0:00:04]}  Bc3 {[%clk 0:00:27]} 46. Rb7 {[%clk 0:00:03]}  Bd4 {[%clk 0:00:27]} 47. h3 {[%clk 0:00:04]}  Bc5 {[%clk 0:00:26]} 48. Bg4 {[%clk 0:00:04]}  Rf6 {[%clk 0:00:26]} 49. Rd7 {[%clk 0:00:03]}  Rd6 {[%clk 0:00:25]} 50. Rxd6 {[%clk 0:00:02]}  Bxd6 {[%clk 0:00:25]} 51. Kf3 {[%clk 0:00:03]}  Bc5 {[%clk 0:00:25]} 52. Ke4 {[%clk 0:00:04]}  Kg7 {[%clk 0:00:25]} 53. Kd5 {[%clk 0:00:05]}  Kf6 {[%clk 0:00:25]} 54. Kc6 {[%clk 0:00:05]}  Kg5 {[%clk 0:00:24]} 55. Kb5 {[%clk 0:00:06]}  Kh4 {[%clk 0:00:23]} 56. b4 {[%clk 0:00:07]}  Be3 {[%clk 0:00:23]} 57. Ka6 {[%clk 0:00:07]}  Kg5 {[%clk 0:00:23]} 58. b5 {[%clk 0:00:08]}  Kf6 {[%clk 0:00:22]} 59. Kb7 {[%clk 0:00:08]}  Kg5 {[%clk 0:00:22]} 60. Ka6 {[%clk 0:00:09]}  Kh4 {[%clk 0:00:22]} 61. Kb7 {[%clk 0:00:10]}  Kg5 {[%clk 0:00:22]} 62. Ka6 {[%clk 0:00:11]} 1/2-1/2


[Site "https://www.chess.com"]

[Event "Titled Tuesday Blitz July 11 Early 2023"]
[White "Rodriguez Fontecha, Marcos"]
[Black "Palczert, Matyas"]
[WhiteFideId "2256576"]
[BlackFideId "784958"]
[WhiteElo "2454"]
[BlackElo "2572"]
[Result "0-1"]
[Round "6"]
[TimeControl "180+2"]
[Date "2023.07.11"]
[WhiteClock "0:00:00"]
[BlackClock "0:00:51"]
[Board "101"]

1. e4 {[%clk 0:03:00]}  c5 {[%clk 0:02:59]} 2. Nc3 {[%clk 0:03:00]}  e6 {[%clk 0:02:56]} 3. g3 {[%clk 0:02:58]}  d5 {[%clk 0:02:53]} 4. Bg2 {[%clk 0:02:58]}  Nf6 {[%clk 0:02:52]} 5. d3 {[%clk 0:02:57]}  Nc6 {[%clk 0:02:51]} 6. Nh3 {[%clk 0:02:55]}  dxe4 {[%clk 0:02:49]} 7. Nxe4 {[%clk 0:02:55]}  Nxe4 {[%clk 0:02:48]} 8. Bxe4 {[%clk 0:02:54]}  e5 {[%clk 0:02:44]} 9. Bg2 {[%clk 0:02:52]}  Be7 {[%clk 0:02:42]} 10. O-O {[%clk 0:02:47]}  O-O {[%clk 0:02:41]} 11. Be3 {[%clk 0:02:44]}  Be6 {[%clk 0:02:37]} 12. f4 {[%clk 0:02:31]}  Qd7 {[%clk 0:02:12]} 13. Nf2 {[%clk 0:02:06]}  exf4 {[%clk 0:02:11]} 14. Bxf4 {[%clk 0:02:05]}  Bd5 {[%clk 0:02:04]} 15. Ne4 {[%clk 0:02:03]}  f5 {[%clk 0:01:59]} 16. Nc3 {[%clk 0:01:53]}  Bxg2 {[%clk 0:01:57]} 17. Kxg2 {[%clk 0:01:54]}  Bf6 {[%clk 0:01:54]} 18. Re1 {[%clk 0:01:40]}  Nd4 {[%clk 0:01:52]} 19. Kg1 {[%clk 0:01:07]}  Qc6 {[%clk 0:01:49]} 20. Rf1 {[%clk 0:01:01]}  Rae8 {[%clk 0:01:46]} 21. Qh5 {[%clk 0:00:52]}  b5 {[%clk 0:01:36]} 22. Nd1 {[%clk 0:00:16]}  g6 {[%clk 0:01:24]} 23. Qh3 {[%clk 0:00:08]}  Re2 {[%clk 0:00:52]} 24. Nf2 {[%clk 0:00:00]}  Nf3+ {[%clk 0:00:51]} 0-1


[Site "https://www.chess.com"]

[Event "Titled Tuesday Blitz July 11 Early 2023"]
[White "Yurasova, Daria"]
[Black "Arencibia Monduy, Antonio"]
[WhiteFideId "34146919"]
[BlackFideId "3507939"]
[WhiteElo "2429"]
[BlackElo "2559"]
[Result "1-0"]
[Round "6"]
[TimeControl "180+2"]
[Date "2023.07.11"]
[WhiteClock "0:01:24"]
[BlackClock "0:00:00"]
[Board "104"]

1. d4 {[%clk 0:03:00]}  Nf6 {[%clk 0:02:59]} 2. Bg5 {[%clk 0:03:00]}  c5 {[%clk 0:02:59]} 3. d5 {[%clk 0:03:00]}  d6 {[%clk 0:02:58]} 4. Bxf6 {[%clk 0:02:59]}  gxf6 {[%clk 0:02:57]} 5. c3 {[%clk 0:02:56]}  Qc7 {[%clk 0:02:55]} 6. g3 {[%clk 0:02:56]}  Bd7 {[%clk 0:02:55]} 7. Bg2 {[%clk 0:02:56]}  Na6 {[%clk 0:02:53]} 8. e4 {[%clk 0:02:56]}  c4 {[%clk 0:02:53]} 9. Ne2 {[%clk 0:02:56]}  Nc5 {[%clk 0:02:53]} 10. O-O {[%clk 0:02:56]}  h5 {[%clk 0:02:48]} 11. Nd2 {[%clk 0:02:55]}  Nd3 {[%clk 0:02:27]} 12. Qc2 {[%clk 0:02:46]}  Bb5 {[%clk 0:02:10]} 13. Nd4 {[%clk 0:02:45]}  Ba6 {[%clk 0:02:10]} 14. Rfd1 {[%clk 0:02:39]}  h4 {[%clk 0:02:09]} 15. N2f3 {[%clk 0:02:32]}  hxg3 {[%clk 0:02:05]} 16. hxg3 {[%clk 0:02:33]}  Bh6 {[%clk 0:01:46]} 17. a4 {[%clk 0:02:28]}  Qb6 {[%clk 0:01:29]} 18. Bf1 {[%clk 0:02:10]}  Rc8 {[%clk 0:00:49]} 19. Rab1 {[%clk 0:02:08]}  Ne5 {[%clk 0:00:44]} 20. b4 {[%clk 0:01:50]}  Nxf3+ {[%clk 0:00:41]} 21. Nxf3 {[%clk 0:01:50]}  Rg8 {[%clk 0:00:16]} 22. Nd4 {[%clk 0:01:41]}  e5 {[%clk 0:00:13]} 23. dxe6 {[%clk 0:01:41]}  fxe6 {[%clk 0:00:13]} 24. Qe2 {[%clk 0:01:34]}  Ke7 {[%clk 0:00:09]} 25. b5 {[%clk 0:01:32]}  Qc5 {[%clk 0:00:08]} 26. bxa6 {[%clk 0:01:32]}  b6 {[%clk 0:00:06]} 27. Rb5 {[%clk 0:01:31]}  Qc7 {[%clk 0:00:07]} 28. Bh3 {[%clk 0:01:29]}  Bg5 {[%clk 0:00:04]} 29. Nxe6 {[%clk 0:01:29]}  Qc6 {[%clk 0:00:04]} 30. Nxg5 {[%clk 0:01:23]}  Rxg5 {[%clk 0:00:00]} 31. Bxc8 {[%clk 0:01:24]} 1-0


[Site "https://www.chess.com"]

[Event "Titled Tuesday Blitz July 11 Early 2023"]
[White "robertoalejandro10"]
[Black "Melikhov, Evgeny V."]
[BlackFideId "4122046"]
[WhiteElo "2555"]
[BlackElo "2427"]
[Result "1-0"]
[Round "6"]
[TimeControl "180+2"]
[Date "2023.07.11"]
[WhiteClock "0:01:04"]
[BlackClock "0:00:17"]
[Board "105"]

1. d4 {[%clk 0:03:00]}  Nf6 {[%clk 0:02:59]} 2. e3 {[%clk 0:02:59]}  d5 {[%clk 0:02:58]} 3. Nf3 {[%clk 0:02:58]}  c5 {[%clk 0:02:57]} 4. c3 {[%clk 0:02:55]}  e6 {[%clk 0:02:53]} 5. Bd3 {[%clk 0:02:54]}  Nc6 {[%clk 0:02:53]} 6. O-O {[%clk 0:02:54]}  Bd6 {[%clk 0:02:53]} 7. Nbd2 {[%clk 0:02:53]}  O-O {[%clk 0:02:53]} 8. Qe2 {[%clk 0:02:53]}  e5 {[%clk 0:02:47]} 9. dxe5 {[%clk 0:02:51]}  Nxe5 {[%clk 0:02:47]} 10. Nxe5 {[%clk 0:02:52]}  Bxe5 {[%clk 0:02:47]} 11. Nf3 {[%clk 0:02:52]}  Bc7 {[%clk 0:02:47]} 12. h3 {[%clk 0:02:46]}  Qe7 {[%clk 0:02:45]} 13. Rd1 {[%clk 0:02:45]}  Rd8 {[%clk 0:02:43]} 14. b3 {[%clk 0:02:43]}  Ne4 {[%clk 0:02:25]} 15. Bb2 {[%clk 0:02:37]}  c4 {[%clk 0:02:24]} 16. bxc4 {[%clk 0:02:30]}  dxc4 {[%clk 0:02:24]} 17. Bxc4 {[%clk 0:02:15]}  Bf5 {[%clk 0:02:15]} 18. Bb3 {[%clk 0:02:11]}  Ng5 {[%clk 0:02:05]} 19. Nxg5 {[%clk 0:02:07]}  Qxg5 {[%clk 0:02:05]} 20. Qf3 {[%clk 0:02:07]}  Bd3 {[%clk 0:01:53]} 21. e4 {[%clk 0:01:57]}  Qe5 {[%clk 0:00:36]} 22. Rxd3 {[%clk 0:01:38]}  Qh2+ {[%clk 0:00:35]} 23. Kf1 {[%clk 0:01:38]}  Rxd3 {[%clk 0:00:35]} 24. Qxd3 {[%clk 0:01:39]}  Qh1+ {[%clk 0:00:35]} 25. Ke2 {[%clk 0:01:39]}  Qxg2 {[%clk 0:00:35]} 26. Qf3 {[%clk 0:01:40]}  Qg6 {[%clk 0:00:29]} 27. Bd5 {[%clk 0:01:17]}  Rd8 {[%clk 0:00:22]} 28. Rd1 {[%clk 0:01:14]}  Qa6+ {[%clk 0:00:21]} 29. Ke1 {[%clk 0:01:06]}  Be5 {[%clk 0:00:17]} 30. Bxf7+ {[%clk 0:01:04]} 1-0


[Site "https://www.chess.com"]